[Event "POL-chT 1 Liga 2019"]
[Site "Dzwirzyno"]
[Date "2019.09.11"]
[Round "5.1"]
[White "Szwed, Jacek"]
[Black "Nayhebaver, Martin"]
[Result "0-1"]
[ECO "B91"]
[WhiteElo "2370"]
[BlackElo "2491"]
[Annotator "ChessBase"]
[PlyCount "122"]
[EventDate "2019.09.07"]
[EventType "team-tourn"]
[EventCountry "POL"]
[SourceTitle "playchess.com"]
[Source "ChessBase"]
[SourceQuality "1"]
[TimeControl "40/5400+30:1800+30"]

1. e4 {[%emt 0:00:00]} c5 {[%emt 0:00:00]} 2. Nf3 {[%emt 0:00:00]} d6 {[%emt 0:00:31]} 3. d4 {[%emt 0:00:00]} cxd4 {[%emt 0:00:24]} 4. Nxd4 {[%emt 0:00:00]} Nf6 {[%emt 0:00:34]} 5. Nc3 {[%emt 0:00:03]} a6 {[%emt 0:01:07]} 6. g3 {[%emt 0:00:14]} e5 {[%emt 0:01:58]} 7. Nb3 {[%emt 0:00:09]} Bg4 {[%emt 0:02:53]} 8. Be2 {[%emt 0:03:05]} Be6 {[%emt 0:07:54]} 9. O-O {[%emt 0:00:06]} Be7 {[%emt 0:01:32]} 10. Bf3 {[%emt 0:03:02]} O-O {[%emt 0:02:10]} 11. Re1 {[%emt 0:00:24]} a5 {[%emt 0:02:36]} 12. a4 {[%emt 0:04:24]} Na6 {[%emt 0:05:14]} 13. Nd5 {[%emt 0:34:46]} Bxd5 {[%emt 0:01:24]} 14. exd5 {[%emt 0:02:58]} Nd7 {[%emt 0:00:14]} 15. Qe2 {[%emt 0:11:00]} b6 {[%emt 0:11:39]} 16. Bg2 {[%emt 0:05:27]} Bg5 {[%emt 0:06:09]} 17. Bxg5 {[%emt 0:03:47]} Qxg5 {[%emt 0:01:06]} 18. Qb5 {[%emt 0:00:51]} Rfd8 {[%emt 0:05:47]} 19. Rad1 {[%emt 0:02:05]} Qg6 {[%emt 0:01:22]} 20. c3 {[%emt 0:07:28]} Nac5 {[%emt 0:02:19]} 21. Nd2 {[%emt 0:03:34]} Qc2 {[%emt 0:04:44]} 22. Nc4 {[%emt 0:00:57]} Nf6 {[%emt 0:10:15]} 23. Bf1 {[%emt 0:10:47]} Rab8 {[%emt 0:07:21]} 24. Ne3 {[%emt 0:02:01]} Qxa4 {[%emt 0:00:58]} 25. Qxa4 {[%emt 0:01:35]} Nxa4 {[%emt 0:00:01]} 26. Ra1 {[%emt 0:00:01]} Nc5 {[%emt 0:01:51]} 27. Bb5 {[%emt 0:00:41]} g6 {[%emt 0:01:03]} 28. f3 {[%emt 0:00:57]} Ne8 {[%emt 0:02:50]} 29. b4 {[%emt 0:00:20]} axb4 {[%emt 0:00:44]} 30. cxb4 {[%emt 0:00:01]} Nb3 {[%emt 0:00:07]} 31. Ra7 {[%emt 0:01:51]} Nd4 {[%emt 0:00:21]} 32. Bxe8 {[%emt 0:01:49]} Rxe8 {[%emt 0:00:28]} 33. Kf2 {[%emt 0:00:01]} Rbc8 {[%emt 0:04:02]} 34. Rd7 {[%emt 0:01:38]} Red8 {[%emt 0:00:11]} 35. Rxd8+ {[%emt 0:00:16]} Rxd8 {[%emt 0:00:01]} 36. Ra1 {[%emt 0:00:38]} b5 {[%emt 0:01:26]} 37. Ra7 {[%emt 0:00:50]} h5 {[%emt 0:01:50]} 38. f4 {[%emt 0:00:34]} Kg7 {[%emt 0:00:48]} 39. h3 {[%emt 0:00:35]} h4 {[%emt 0:00:42]} 40. gxh4 {[%emt 0:00:00]} exf4 {[%emt 0:00:00]} 41. Ng2 {[%emt 0:00:46]} f3 {[%emt 0:01:45]} 42. Ne1 {[%emt 0:01:05]} Re8 {[%emt 0:02:05]} 43. Ra2 {[%emt 0:12:14]} Re4 {[%emt 0:02:23]} 44. h5 {[%emt 0:04:51]} g5 {[%emt 0:05:42]} 45. h6+ {[%emt 0:04:17]} Kxh6 {[%emt 0:00:59]} 46. Ra6 {[%emt 0:00:00]} Re2+ {[%emt 0:00:34]} 47. Kf1 {[%emt 0:00:06]} Rd2 {[%emt 0:00:32]} 48. Ra3 {[%emt 0:04:57]} f2 {[%emt 0:01:57]} 49. Nf3 {[%emt 0:02:20]} Nxf3 {[%emt 0:00:18]} 50. Rxf3 {[%emt 0:00:01]} Kg6 {[%emt 0:00:11]} 51. Rc3 {[%emt 0:00:40]} Rxd5 {[%emt 0:01:16]} 52. Kxf2 {[%emt 0:00:13]} Rd4 {[%emt 0:01:33]} 53. Rc6 {[%emt 0:00:15]} Rxb4 {[%emt 0:01:41]} 54. Rxd6+ {[%emt 0:00:02]} f6 {[%emt 0:00:09]} 55. Rd5 {[%emt 0:01:02]} Rb1 {[%emt 0:00:43]} 56. Kg3 {[%emt 0:00:49]} b4 {[%emt 0:00:04]} 57. Rb5 {[%emt 0:00:07]} b3 {[%emt 0:00:16]} 58. h4 {[%emt 0:05:04]} b2 {[%emt 0:00:28]} 59. Kh2 {[%emt 0:00:54]} gxh4 {[%emt 0:00:05]} 60. Kg2 {[%emt 0:00:04]} f5 {[%emt 0:00:13]} 61. Kh2 {[%emt 0:01:03]} f4 {[%emt 0:00:13]} 0-1

[Event "POL-chT 1 Liga 2019"]
[Site "Dzwirzyno"]
[Date "2019.09.11"]
[Round "5.2"]
[White "Roubalik, Jakub"]
[Black "Zylka, Stanislaw"]
[Result "1/2-1/2"]
[ECO "D86"]
[WhiteElo "2405"]
[BlackElo "2338"]
[Annotator "NA"]
[PlyCount "82"]
[EventDate "2019.09.07"]
[EventType "team-tourn"]
[EventCountry "POL"]
[SourceTitle "playchess.com"]
[Source "ChessBase"]
[SourceQuality "1"]
[TimeControl "40/5400+30:1800+30"]

1. d4 {[%emt 0:00:00]} Nf6 {[%emt 0:00:35]} 2. c4 {[%emt 0:00:00]} g6 {[%emt 0:00:10]} 3. Nc3 {[%emt 0:00:00]} d5 {[%emt 0:00:06]} 4. cxd5 {[%emt 0:00:00]} Nxd5 {[%emt 0:00:08]} 5. e4 {[%emt 0:00:00]} Nxc3 {[%emt 0:00:11]} 6. bxc3 {[%emt 0:00:00]} Bg7 {[%emt 0:00:10]} 7. Bc4 {[%emt 0:00:05]} c5 {[%emt 0:00:10]} 8. Ne2 {[%emt 0:00:12]} Nc6 {[%emt 0:00:10]} 9. Be3 {[%emt 0:00:03]} O-O {[%emt 0:00:13]} 10. O-O {[%emt 0:00:04]} b6 {[%emt 0:00:06]} 11. Qd2 {[%emt 0:02:46]} Bb7 {[%emt 0:00:13]} 12. Rac1 {[%emt 0:10:03]} e6 {[%emt 0:00:46]} 13. Rfd1 {[%emt 0:05:14]} Rc8 {[%emt 0:01:28]} 14. Bg5 {[%emt 0:17:51]} Qd6 {[%emt 0:01:53]} 15. e5 {[%emt 0:10:22]} Qd7 {[%emt 0:01:42]} 16. Bf6 {[%emt 0:08:51]} cxd4 {[%emt 0:00:53]} 17. Bxg7 {[%emt 0:01:37]} Kxg7 {[%emt 0:00:11]} 18. cxd4 {[%emt 0:00:41]} Na5 {[%emt 0:03:47]} 19. Bd3 {[%emt 0:00:13]} Rxc1 {[%emt 0:20:45]} 20. Rxc1 {[%emt 0:00:14]} Rc8 {[%emt 0:00:14]} 21. Rxc8 {[%emt 0:00:32]} Qxc8 {[%emt 0:00:22]} 22. h4 {[%emt 0:11:06]} h6 {[%emt 0:04:02]} 23. Qf4 {[%emt 0:06:39]} Qd8 {[%emt 0:05:00]} 24. Nc3 {[%emt 0:01:10]} a6 {[%emt 0:22:36]} 25. Ne4 {[%emt 0:08:34]} Bxe4 {[%emt 0:02:14]} 26. Qxe4 {[%emt 0:00:03]} b5 {[%emt 0:01:02]} 27. h5 {[%emt 0:00:50]} gxh5 {[%emt 0:02:44]} 28. Qh7+ {[%emt 0:00:13]} Kf8 {[%emt 0:00:05]} 29. Qxh6+ {[%emt 0:00:17]} Ke8 {[%emt 0:00:48]} 30. Be2 {[%emt 0:11:33]} Qxd4 {[%emt 0:05:06]} 31. Qh8+ {[%emt 0:00:04]} Kd7 {[%emt 0:00:38]} 32. Qf6 {[%emt 0:01:23]} Nc6 {[%emt 0:02:59]} 33. Qxf7+ {[%emt 0:01:07]} Ne7 {[%emt 0:00:13]} 34. Bxh5 {[%emt 0:01:19]} Qa1+ {[%emt 0:00:21]} 35. Kh2 {[%emt 0:00:01]} Qxe5+ {[%emt 0:00:10]} 36. g3 {[%emt 0:00:36]} Qh8 {[%emt 0:04:34]} 37. Kg2 {[%emt 0:00:24]} a5 {[%emt 0:01:00]} 38. Bf3 {[%emt 0:02:35]} Qb2 {[%emt 0:03:52]} 39. Qh7 {[%emt 0:00:54]} Kd6 {[%emt 0:01:13]} 40. Qd3+ {[%emt 0:00:00]} Nd5 {[%emt 0:00:00]} 41. Bxd5 {[%emt 0:11:19]} Ke5 1/2-1/2

[Event "POL-chT 1 Liga 2019"]
[Site "Dzwirzyno"]
[Date "2019.09.11"]
[Round "5.3"]
[White "Koziol, Kamil"]
[Black "Paszewski, Mateusz"]
[Result "1/2-1/2"]
[ECO "B31"]
[WhiteElo "2292"]
[BlackElo "2297"]
[Annotator "NA"]
[PlyCount "50"]
[EventDate "2019.09.07"]
[EventType "team-tourn"]
[EventCountry "POL"]
[SourceTitle "playchess.com"]
[Source "ChessBase"]
[SourceQuality "1"]
[TimeControl "40/5400+30:1800+30"]

1. e4 {[%emt 0:00:54]} c5 {[%emt 0:02:10]} 2. Nf3 {[%emt 0:00:08]} Nc6 {[%emt 0:00:02]} 3. Bb5 {[%emt 0:00:43]} g6 {[%emt 0:00:05]} 4. Bxc6 {[%emt 0:00:17]} dxc6 {[%emt 0:00:01]} 5. d3 {[%emt 0:00:11]} Bg7 {[%emt 0:00:04]} 6. h3 {[%emt 0:00:09]} Nf6 {[%emt 0:00:14]} 7. Nc3 {[%emt 0:00:23]} Nd7 {[%emt 0:00:09]} 8. Be3 {[%emt 0:01:37]} e5 {[%emt 0:00:13]} 9. Qd2 {[%emt 0:00:20]} h6 {[%emt 0:00:04]} 10. O-O {[%emt 0:01:17]} b6 {[%emt 0:01:01]} 11. Nh2 {[%emt 0:04:08]} Nf8 {[%emt 0:02:27]} 12. f4 {[%emt 0:05:16]} exf4 {[%emt 0:00:04]} 13. Rxf4 {[%emt 0:01:44]} Be6 {[%emt 0:08:08]} 14. Raf1 {[%emt 0:15:50]} Qd6 {[%emt 0:06:58]} 15. Ng4 {[%emt 0:14:56]} O-O-O {[%emt 0:03:32]} 16. Rxf7 {[%emt 0:18:18]} Bxf7 {[%emt 0:02:42]} 17. Rxf7 {[%emt 0:00:16]} Rd7 {[%emt 0:05:14]} 18. Rxd7 {[%emt 0:05:37]} Nxd7 {[%emt 0:03:57]} 19. Bxh6 {[%emt 0:03:50]} Bxh6 {[%emt 0:13:11]} 20. Nxh6 {[%emt 0:00:02]} Qd4+ {[%emt 0:00:10]} 21. Kh2 {[%emt 0:02:25]} Rf8 {[%emt 0:01:21]} 22. Ng4 {[%emt 0:01:44]} Qd6+ {[%emt 0:06:18]} 23. Kg1 {[%emt 0:01:33]} Qd4+ {[%emt 0:13:41]} 24. Kh2 {[%emt 0:01:33]} Qd6+ {[%emt 0:06:51]} 25. Kg1 {[%emt 0:00:08]} Qd4+ {[%emt 0:11:12]} 1/2-1/2

[Event "POL-chT 1 Liga 2019"]
[Site "Dzwirzyno"]
[Date "2019.09.11"]
[Round "5.4"]
[White "Ciesla, Adam"]
[Black "Nowak, Mikolaj"]
[Result "1/2-1/2"]
[ECO "B15"]
[WhiteElo "2273"]
[BlackElo "2262"]
[Annotator "NA"]
[PlyCount "43"]
[EventDate "2019.09.07"]
[EventType "team-tourn"]
[EventCountry "POL"]
[SourceTitle "playchess.com"]
[Source "ChessBase"]
[SourceQuality "1"]
[TimeControl "40/5400+30:1800+30"]

1. e4 {[%emt 0:00:00]} c6 {[%emt 0:00:00]} 2. d4 {[%emt 0:00:00]} d5 {[%emt 0:00:00]} 3. Nd2 {[%emt 0:00:00]} dxe4 {[%emt 0:00:00]} 4. Nxe4 {[%emt 0:00:00]} Nf6 {[%emt 0:00:00]} 5. Nxf6+ {[%emt 0:00:19]} exf6 {[%emt 0:00:02]} 6. c3 {[%emt 0:01:03]} Bd6 {[%emt 0:00:12]} 7. Bd3 {[%emt 0:01:54]} O-O {[%emt 0:00:10]} 8. Ne2 {[%emt 0:02:12]} Re8 {[%emt 0:00:43]} 9. Qc2 {[%emt 0:03:09]} g6 {[%emt 0:00:36]} 10. h4 {[%emt 0:04:14]} Nd7 {[%emt 0:00:52]} 11. h5 {[%emt 0:03:12]} Nf8 {[%emt 0:00:39]} 12. Bh6 {[%emt 0:07:16]} Be6 {[%emt 0:08:43]} 13. O-O-O {[%emt 0:02:48]} f5 {[%emt 0:13:47]} 14. Rh3 {[%emt 0:22:27]} Qf6 {[%emt 0:17:37]} 15. hxg6 {[%emt 0:14:45]} fxg6 {[%emt 0:01:07]} 16. Rdh1 {[%emt 0:02:40]} Qf7 {[%emt 0:10:23]} 17. b3 {[%emt 0:05:17]} a5 {[%emt 0:03:45]} 18. Nf4 {[%emt 0:01:36]} b5 {[%emt 0:06:34]} 19. Kb1 {[%emt 0:10:03]} a4 {[%emt 0:01:42]} 20. b4 {[%emt 0:00:20]} Bc4 {[%emt 0:03:18]} 21. Bxc4 {[%emt 0:10:21]} Qxc4 {[%emt 0:00:08]} 22. Qd3 {[%emt 0:00:09]} 1/2-1/2

[Event "POL-chT 1 Liga 2019"]
[Site "Dzwirzyno"]
[Date "2019.09.11"]
[Round "5.5"]
[White "Tomaszewski, Kacper"]
[Black "Flis, Jacek"]
[Result "1-0"]
[ECO "A53"]
[WhiteElo "2363"]
[BlackElo "2219"]
[Annotator "NA"]
[PlyCount "55"]
[EventDate "2019.09.07"]
[EventType "team-tourn"]
[EventCountry "POL"]
[SourceTitle "playchess.com"]
[Source "ChessBase"]
[SourceQuality "1"]
[TimeControl "40/5400+30:1800+30"]

1. d4 {[%emt 0:00:00]} Nf6 {[%emt 0:00:00]} 2. c4 {[%emt 0:00:00]} d6 {[%emt 0:00:37]} 3. Nc3 {[%emt 0:00:14]} Nbd7 {[%emt 0:00:59]} 4. e4 {[%emt 0:02:02]} e5 {[%emt 0:02:53]} 5. d5 {[%emt 0:02:41]} Nc5 {[%emt 0:01:56]} 6. f3 {[%emt 0:01:16]} a5 {[%emt 0:01:17]} 7. Nge2 {[%emt 0:02:10]} Be7 {[%emt 0:02:05]} 8. Be3 {[%emt 0:04:24]} O-O {[%emt 0:02:41]} 9. Ng3 {[%emt 0:01:03]} Ne8 {[%emt 0:03:23]} 10. Qd2 {[%emt 0:00:33]} b6 {[%emt 0:05:16]} 11. Be2 {[%emt 0:00:26]} g6 {[%emt 0:29:19]} 12. O-O {[%emt 0:00:15]} Ng7 {[%emt 0:04:30]} 13. Bh6 {[%emt 0:02:10]} Bh4 {[%emt 0:08:15]} 14. f4 {[%emt 0:14:20]} exf4 {[%emt 0:04:04]} 15. Qxf4 {[%emt 0:00:20]} Nd7 {[%emt 0:02:14]} 16. Nb5 {[%emt 0:04:18]} Ne5 {[%emt 0:05:53]} 17. Nd4 {[%emt 0:01:01]} Bd7 {[%emt 0:01:02]} 18. Rad1 {[%emt 0:12:07]} Bxg3 {[%emt 0:09:01]} 19. Qxg3 {[%emt 0:01:20]} Qe7 {[%emt 0:05:09]} 20. Rde1 {[%emt 0:07:10]} f6 {[%emt 0:00:57]} 21. h4 {[%emt 0:03:53]} Rf7 {[%emt 0:01:42]} 22. h5 {[%emt 0:03:08]} Kh8 {[%emt 0:02:15]} 23. hxg6 {[%emt 0:02:03]} hxg6 {[%emt 0:01:06]} 24. b3 {[%emt 0:05:19]} Kh7 {[%emt 0:01:42]} 25. Bxg7 {[%emt 0:11:31]} Kxg7 {[%emt 0:00:45]} 26. Bh5 {[%emt 0:00:06]} Kh6 {[%emt 0:01:49]} 27. Bxg6 {[%emt 0:00:42]} Nxg6 {[%emt 0:02:02]} 28. Nf5+ {[%emt 0:00:04]} 1-0

[Event "POL-chT 1 Liga 2019"]
[Site "Dzwirzyno"]
[Date "2019.09.11"]
[Round "5.6"]
[White "Lach, Aleksandra"]
[Black "Cieslak, Wiktoria"]
[Result "1-0"]
[ECO "B47"]
[WhiteElo "2173"]
[BlackElo "2063"]
[Annotator "NA"]
[PlyCount "83"]
[EventDate "2019.09.07"]
[EventType "team-tourn"]
[EventCountry "POL"]
[SourceTitle "playchess.com"]
[Source "ChessBase"]
[SourceQuality "1"]
[TimeControl "40/5400+30:1800+30"]

1. e4 {[%emt 0:00:00]} c5 {[%emt 0:00:00]} 2. Nc3 {[%emt 0:00:29]} e6 {[%emt 0:00:37]} 3. Nf3 {[%emt 0:01:21]} Nc6 {[%emt 0:00:58]} 4. d4 {[%emt 0:01:05]} cxd4 {[%emt 0:00:30]} 5. Nxd4 {[%emt 0:00:06]} Qc7 {[%emt 0:00:25]} 6. Be2 {[%emt 0:02:03]} Nf6 {[%emt 0:03:52]} 7. Be3 {[%emt 0:01:57]} a6 {[%emt 0:00:50]} 8. O-O {[%emt 0:00:52]} Bb4 {[%emt 0:02:05]} 9. f3 {[%emt 0:16:30]} O-O {[%emt 0:00:41]} 10. Kh1 {[%emt 0:05:03]} Bxc3 {[%emt 0:12:00]} 11. bxc3 {[%emt 0:01:21]} d5 {[%emt 0:00:14]} 12. Bg5 {[%emt 0:05:12]} Nd7 {[%emt 0:03:11]} 13. exd5 {[%emt 0:05:55]} exd5 {[%emt 0:00:08]} 14. Nb3 {[%emt 0:12:32]} Re8 {[%emt 0:06:11]} 15. Re1 {[%emt 0:07:17]} h6 {[%emt 0:05:23]} 16. Bh4 {[%emt 0:03:48]} Nb6 {[%emt 0:02:42]} 17. Bg3 {[%emt 0:03:49]} Qd8 {[%emt 0:01:42]} 18. Bd3 {[%emt 0:05:18]} Be6 {[%emt 0:00:53]} 19. Nc5 {[%emt 0:07:28]} Qc8 20. Qb1 Nc4 {[%emt 0:05:22]} 21. Bxc4 {[%emt 0:03:04]} dxc4 {[%emt 0:00:09]} 22. Nxb7 {[%emt 0:00:21]} Re7 {[%emt 0:01:11]} 23. Nd6 {[%emt 0:00:49]} Qd8 {[%emt 0:00:52]} 24. Qc1 {[%emt 0:02:49]} Qa5 {[%emt 0:02:22]} 25. Qe3 {[%emt 0:02:27]} Rd8 {[%emt 0:03:46]} 26. Reb1 {[%emt 0:03:33]} Bf5 {[%emt 0:07:09]} 27. Qf2 {[%emt 0:00:43]} Qd5 {[%emt 0:03:56]} 28. Rd1 {[%emt 0:00:54]} Qe6 {[%emt 0:02:21]} 29. Qc5 {[%emt 0:01:17]} Bxc2 {[%emt 0:05:03]} 30. Re1 {[%emt 0:00:01]} Qd7 {[%emt 0:00:38]} 31. Qxc4 {[%emt 0:00:44]} Nb8 {[%emt 0:04:44]} 32. h3 {[%emt 0:03:38]} Bg6 {[%emt 0:02:14]} 33. Rxe7 {[%emt 0:00:39]} Qxe7 {[%emt 0:00:07]} 34. Re1 {[%emt 0:00:10]} Qg5 {[%emt 0:01:38]} 35. Kh2 {[%emt 0:00:38]} Qf6 {[%emt 0:05:01]} 36. Qc7 {[%emt 0:00:43]} Rf8 {[%emt 0:03:26]} 37. Re8 {[%emt 0:01:14]} Rxe8 {[%emt 0:03:29]} 38. Nxe8 {[%emt 0:00:02]} Qe6 {[%emt 0:01:11]} 39. Qxb8 {[%emt 0:00:25]} Kh7 {[%emt 0:00:09]} 40. a3 {[%emt 0:00:00]} f6 {[%emt 0:00:00]} 41. Nc7 {[%emt 0:03:17]} Qa2 {[%emt 0:03:02]} 42. Qb7 {[%emt 0:05:54]} 1-0

[Event "POL-chT 1 Liga 2019"]
[Site "Dzwirzyno"]
[Date "2019.09.11"]
[Round "5.9"]
[White "Plichta, Kamil"]
[Black "Nurkiewicz, Maciej"]
[Result "1/2-1/2"]
[ECO "D17"]
[WhiteElo "2349"]
[BlackElo "2334"]
[Annotator "NA"]
[PlyCount "154"]
[EventDate "2019.09.07"]
[EventType "team-tourn"]
[EventCountry "POL"]
[SourceTitle "playchess.com"]
[Source "ChessBase"]
[SourceQuality "1"]
[TimeControl "40/5400+30:1800+30"]

1. d4 {[%emt 0:00:00]} d5 {[%emt 0:00:00]} 2. c4 {[%emt 0:00:00]} c6 {[%emt 0:00:00]} 3. Nc3 {[%emt 0:00:00]} Nf6 {[%emt 0:00:00]} 4. Nf3 {[%emt 0:00:00]} dxc4 {[%emt 0:00:10]} 5. a4 {[%emt 0:00:00]} Bf5 {[%emt 0:00:11]} 6. Ne5 {[%emt 0:00:00]} Nbd7 {[%emt 0:00:10]} 7. Nxc4 {[%emt 0:00:00]} Qc7 {[%emt 0:00:11]} 8. g3 {[%emt 0:00:07]} e5 {[%emt 0:00:17]} 9. dxe5 {[%emt 0:00:04]} Nxe5 {[%emt 0:00:06]} 10. Bf4 {[%emt 0:00:05]} Nfd7 {[%emt 0:00:13]} 11. Bg2 {[%emt 0:00:08]} g5 {[%emt 0:00:20]} 12. Ne3 {[%emt 0:00:04]} gxf4 {[%emt 0:00:19]} 13. Nxf5 {[%emt 0:00:05]} O-O-O {[%emt 0:00:21]} 14. Qc2 {[%emt 0:00:16]} fxg3 {[%emt 0:00:21]} 15. hxg3 {[%emt 0:00:06]} Kb8 {[%emt 0:00:14]} 16. O-O {[%emt 0:06:44]} Nf6 {[%emt 0:11:17]} 17. Rad1 {[%emt 0:03:36]} Bc5 {[%emt 0:13:46]} 18. Ne4 {[%emt 0:06:46]} Nxe4 {[%emt 0:00:37]} 19. Bxe4 {[%emt 0:03:02]} Qb6 {[%emt 0:02:37]} 20. e3 {[%emt 0:04:27]} a5 {[%emt 0:03:49]} 21. Kg2 {[%emt 0:07:46]} Qb4 {[%emt 0:05:16]} 22. Nh6 {[%emt 0:06:09]} Bb6 {[%emt 0:13:25]} 23. b3 {[%emt 0:02:59]} Rd6 {[%emt 0:12:33]} 24. Rxd6 {[%emt 0:03:11]} Qxd6 {[%emt 0:00:04]} 25. Qc3 {[%emt 0:06:52]} Re8 {[%emt 0:03:11]} 26. Rh1 {[%emt 0:06:22]} Ng4 {[%emt 0:03:51]} 27. Qd3 {[%emt 0:01:12]} Qxd3 {[%emt 0:12:51]} 28. Bxd3 {[%emt 0:00:02]} Nxf2 {[%emt 0:00:13]} 29. Kxf2 {[%emt 0:00:05]} Rxe3 {[%emt 0:00:06]} 30. Bxh7 {[%emt 0:01:59]} Rxb3+ {[%emt 0:00:35]} 31. Kg2 {[%emt 0:01:11]} Bc7 {[%emt 0:00:37]} 32. g4 {[%emt 0:04:58]} f6 {[%emt 0:01:25]} 33. Bf5 {[%emt 0:06:27]} b5 {[%emt 0:05:59]} 34. Be4 {[%emt 0:06:11]} bxa4 {[%emt 0:02:37]} 35. Nf5 {[%emt 0:01:53]} Be5 {[%emt 0:02:55]} 36. Ne7 {[%emt 0:06:37]} Rg3+ {[%emt 0:01:37]} 37. Kf2 {[%emt 0:00:05]} Rxg4 {[%emt 0:00:27]} 38. Bf3 {[%emt 0:07:10]} Rc4 {[%emt 0:00:48]} 39. Nxc6+ {[%emt 0:03:21]} Kc7 {[%emt 0:00:24]} 40. Nxe5 {[%emt 0:00:00]} fxe5 {[%emt 0:00:00]} 41. Be2 {[%emt 0:05:39]} Rd4 {[%emt 0:01:33]} 42. Ke3 {[%emt 0:00:20]} a3 {[%emt 0:05:05]} 43. Ra1 {[%emt 0:00:18]} Kb6 {[%emt 0:00:19]} 44. Rxa3 {[%emt 0:00:12]} a4 {[%emt 0:00:12]} 45. Ra1 {[%emt 0:00:21]} Kc5 {[%emt 0:02:56]} 46. Rb1 {[%emt 0:02:21]} Rb4 {[%emt 0:02:23]} 47. Rc1+ {[%emt 0:00:06]} Kd5 {[%emt 0:00:21]} 48. Rc8 {[%emt 0:01:33]} Rh4 {[%emt 0:13:00]} 49. Kd2 {[%emt 0:01:32]} Rd4+ {[%emt 0:03:10]} 50. Kc3 {[%emt 0:00:55]} Ke4 {[%emt 0:00:14]} 51. Bc4 {[%emt 0:01:59]} Ke3 {[%emt 0:01:06]} 52. Ra8 {[%emt 0:00:28]} e4 {[%emt 0:01:41]} 53. Rxa4 {[%emt 0:00:12]} Rd8 {[%emt 0:00:21]} 54. Ra7 {[%emt 0:00:11]} Re8 {[%emt 0:01:09]} 55. Rf7 {[%emt 0:00:35]} Re5 {[%emt 0:01:37]} 56. Rf1 {[%emt 0:00:07]} Re8 {[%emt 0:00:36]} 57. Bd3 {[%emt 0:01:46]} Rc8+ {[%emt 0:00:20]} 58. Bc4 {[%emt 0:00:05]} Re8 {[%emt 0:00:10]} 59. Rh1 {[%emt 0:00:22]} Re7 {[%emt 0:01:45]} 60. Rh3+ {[%emt 0:00:21]} Kf2 {[%emt 0:00:39]} 61. Kd4 {[%emt 0:01:03]} e3 {[%emt 0:00:17]} 62. Rh2+ {[%emt 0:00:16]} Kg3 {[%emt 0:00:14]} 63. Ra2 {[%emt 0:00:24]} Kf4 {[%emt 0:00:26]} 64. Bb5 {[%emt 0:04:44]} Re4+ {[%emt 0:00:24]} 65. Kc3 {[%emt 0:00:12]} Re5 {[%emt 0:00:26]} 66. Be2 {[%emt 0:00:19]} Rc5+ {[%emt 0:06:31]} 67. Kd4 {[%emt 0:00:11]} Rc8 {[%emt 0:00:07]} 68. Bc4 {[%emt 0:06:20]} Rd8+ {[%emt 0:00:17]} 69. Kc3 {[%emt 0:00:18]} Rc8 {[%emt 0:00:44]} 70. Kd4 {[%emt 0:02:31]} Rd8+ {[%emt 0:00:05]} 71. Kc5 {[%emt 0:00:09]} Rc8+ {[%emt 0:00:13]} 72. Kd5 {[%emt 0:00:24]} Rd8+ {[%emt 0:00:06]} 73. Ke6 {[%emt 0:00:43]} Rd2 {[%emt 0:00:12]} 74. Ra5 {[%emt 0:01:09]} e2 {[%emt 0:00:49]} 75. Re5 {[%emt 0:00:31]} Kf3 {[%emt 0:00:12]} 76. Bxe2+ {[%emt 0:00:16]} Rxe2 {[%emt 0:00:05]} 77. Rxe2 {[%emt 0:00:05]} Kxe2 1/2-1/2

[Event "POL-chT 1 Liga 2019"]
[Site "Dzwirzyno"]
[Date "2019.09.11"]
[Round "5.10"]
[White "Bartel, Michal"]
[Black "Reza, Wojciech"]
[Result "1/2-1/2"]
[ECO "D00"]
[WhiteElo "2291"]
[BlackElo "2293"]
[Annotator "NA"]
[PlyCount "93"]
[EventDate "2019.09.07"]
[EventType "team-tourn"]
[EventCountry "POL"]
[SourceTitle "playchess.com"]
[Source "ChessBase"]
[SourceQuality "1"]
[TimeControl "40/5400+30:1800+30"]

1. d4 {[%emt 0:00:00]} d5 {[%emt 0:03:01]} 2. Bf4 {[%emt 0:00:00]} c5 {[%emt 0:01:39]} 3. e3 {[%emt 0:00:00]} Nc6 {[%emt 0:14:12]} 4. c3 {[%emt 0:01:06]} Nf6 {[%emt 0:00:30]} 5. Nd2 {[%emt 0:00:09]} e6 {[%emt 0:08:29]} 6. Ngf3 {[%emt 0:05:33]} Bd6 {[%emt 0:02:11]} 7. Bg3 {[%emt 0:03:16]} O-O {[%emt 0:02:17]} 8. Bd3 {[%emt 0:00:16]} b6 {[%emt 0:08:04]} 9. Ne5 {[%emt 0:03:24]} Bb7 {[%emt 0:03:09]} 10. O-O {[%emt 0:03:06]} Qc7 {[%emt 0:04:22]} 11. f4 {[%emt 0:00:41]} Ne7 {[%emt 0:11:05]} 12. Qf3 {[%emt 0:16:18]} Nf5 {[%emt 0:02:05]} 13. Bf2 {[%emt 0:01:22]} Be7 {[%emt 0:00:41]} 14. Ng4 {[%emt 0:09:55]} Ne8 {[%emt 0:07:18]} 15. h3 {[%emt 0:11:06]} a5 {[%emt 0:03:44]} 16. Rfe1 {[%emt 0:06:05]} Ned6 {[%emt 0:03:31]} 17. Nh2 {[%emt 0:00:32]} cxd4 {[%emt 0:04:33]} 18. exd4 {[%emt 0:00:38]} Nc4 {[%emt 0:00:17]} 19. Qe2 {[%emt 0:03:26]} Qxf4 {[%emt 0:02:16]} 20. Nxc4 {[%emt 0:00:13]} dxc4 {[%emt 0:00:06]} 21. Bxc4 {[%emt 0:00:06]} Bd6 {[%emt 0:01:30]} 22. Nf1 {[%emt 0:00:24]} Qg5 {[%emt 0:01:05]} 23. Qg4 {[%emt 0:02:30]} Qxg4 {[%emt 0:00:38]} 24. hxg4 {[%emt 0:00:02]} Ne7 {[%emt 0:01:05]} 25. Be2 {[%emt 0:01:19]} Rac8 {[%emt 0:02:06]} 26. Bf3 {[%emt 0:04:33]} Bxf3 {[%emt 0:01:05]} 27. gxf3 {[%emt 0:00:02]} a4 {[%emt 0:00:10]} 28. Rac1 {[%emt 0:00:39]} b5 {[%emt 0:00:24]} 29. Bg3 {[%emt 0:01:21]} Rfd8 {[%emt 0:03:48]} 30. a3 {[%emt 0:07:54]} Nd5 {[%emt 0:00:42]} 31. Bxd6 {[%emt 0:00:26]} Rxd6 {[%emt 0:00:08]} 32. Rcd1 {[%emt 0:01:11]} f6 {[%emt 0:02:04]} 33. Ng3 {[%emt 0:00:54]} Kf7 {[%emt 0:01:20]} 34. Ne4 {[%emt 0:01:18]} Rdc6 {[%emt 0:00:09]} 35. Kf2 {[%emt 0:00:25]} h6 {[%emt 0:03:21]} 36. Kg3 {[%emt 0:00:23]} Re8 {[%emt 0:03:15]} 37. Rd2 {[%emt 0:01:10]} Nb6 {[%emt 0:01:12]} 38. Rde2 {[%emt 0:00:25]} Rd8 {[%emt 0:00:45]} 39. f4 {[%emt 0:00:41]} Nc4 {[%emt 0:00:19]} 40. f5 {[%emt 0:00:00]} e5 {[%emt 0:00:00]} 41. Nc5 {[%emt 0:04:56]} Kg8 {[%emt 0:10:40]} 42. Ne6 {[%emt 0:06:03]} Rd7 {[%emt 0:03:28]} 43. Kh4 {[%emt 0:07:52]} Kf7 {[%emt 0:02:38]} 44. Kg3 Kg8 45. dxe5 fxe5 46. Rxe5 Nxe5 47. Rxe5 1/2-1/2